[Event "DVM U12 2021-22"]
[Site "Naumburg"]
[Date "2022.03.27"]
[Round "4"]
[White "Merenda, Lukas-Benedikt"]
[Black "Burlutskaia, Maria"]
[Result "0-1"]
[ECO "C58"]
[WhiteElo "1479"]
[BlackElo "1420"]
[Annotator "NA"]
[PlyCount "56"]
[EventDate "2022.03.25"]
[EventType "team-tourn"]
[EventRounds "7"]
[EventCountry "GER"]
[SourceTitle "playchess.com"]
[Source "ChessBase"]
[SourceQuality "1"]
[TimeControl "40/5400+30:1800+30"]

1. e4 {[%emt 0:00:01]} e5 {[%emt 0:00:08]} 2. Nf3 {[%emt 0:00:20]} Nc6 {[%emt 0:00:07]} 3. Bc4 {[%emt 0:00:03]} Nf6 {[%emt 0:00:08]} 4. Ng5 {[%emt 0:00:01]} d5 {[%emt 0:00:09]} 5. exd5 {[%emt 0:00:01]} Na5 {[%emt 0:00:09]} 6. Bb5+ {[%emt 0:00:02]} c6 {[%emt 0:00:07]} 7. dxc6 {[%emt 0:00:08]} bxc6 {[%emt 0:00:02]} 8. Bd3 {[%emt 0:00:01]} h6 {[%emt 0:01:07]} 9. Ne4 {[%emt 0:00:53]} Nd5 {[%emt 0:03:13]} 10. O-O {[%emt 0:12:21]} Be7 {[%emt 0:03:22]} 11. Nbc3 {[%emt 0:03:33]} O-O {[%emt 0:01:43]} 12. Re1 {[%emt 0:04:59]} Nf4 {[%emt 0:01:59]} 13. Bf1 {[%emt 0:01:06]} f5 {[%emt 0:02:42]} 14. Ng3 {[%emt 0:01:47]} Bd6 {[%emt 0:05:40]} 15. a3 {[%emt 0:03:50]} c5 {[%emt 0:01:02]} 16. d3 {[%emt 0:01:36]} Bb7 {[%emt 0:00:52]} 17. Nb5 {[%emt 0:02:32]} Bb8 {[%emt 0:01:28]} 18. b4 {[%emt 0:04:52]} cxb4 {[%emt 0:02:08]} 19. axb4 {[%emt 0:00:24]} Nc6 {[%emt 0:00:06]} 20. Rb1 {[%emt 0:01:54]} a6 {[%emt 0:01:38]} 21. Na3 {[%emt 0:00:39]} Nd4 {[%emt 0:09:33]} 22. Bxf4 {[%emt 0:07:34]} exf4 {[%emt 0:00:09]} 23. Ne2 {[%emt 0:00:04]} Nf3+ {[%emt 0:01:12]} 24. gxf3 {[%emt 0:03:59]} Bxf3 {[%emt 0:00:15]} 25. h3 {[%emt 0:04:23]} Qg5+ {[%emt 0:02:53]} 26. Kh2 {[%emt 0:00:23]} Bxe2 {[%emt 0:00:09]} 27. Rxe2 {[%emt 0:00:08]} f3+ {[%emt 0:00:26]} 28. Kh1 {[%emt 0:00:07]} Qf4 {[%emt 0:00:16]} 0-1

[Event "DVM U12 2021-22"]
[Site "Naumburg"]
[Date "2022.03.27"]
[Round "4"]
[White "Cwiklik, Jonah"]
[Black "Eichner, Tim"]
[Result "0-1"]
[ECO "C23"]
[WhiteElo "1409"]
[BlackElo "1460"]
[Annotator "NA"]
[PlyCount "132"]
[EventDate "2022.03.25"]
[EventType "team-tourn"]
[EventRounds "7"]
[EventCountry "GER"]
[SourceTitle "playchess.com"]
[Source "ChessBase"]
[SourceQuality "1"]
[TimeControl "40/5400+30:1800+30"]

1. e4 {[%emt 0:00:02]} e5 {[%emt 0:00:08]} 2. Nf3 {[%emt 0:00:09]} Nc6 {[%emt 0:00:18]} 3. Bc4 {[%emt 0:00:09]} Bc5 {[%emt 0:00:08]} 4. c3 {[%emt 0:00:11]} d6 {[%emt 0:01:13]} 5. d4 {[%emt 0:00:12]} exd4 {[%emt 0:00:13]} 6. cxd4 {[%emt 0:00:10]} Bb6 {[%emt 0:00:44]} 7. Bb5 {[%emt 0:00:42]} Bd7 {[%emt 0:00:32]} 8. O-O {[%emt 0:00:53]} Nf6 {[%emt 0:01:54]} 9. e5 dxe5 {[%emt 0:00:51]} 10. dxe5 {[%emt 0:01:24]} Nxe5 {[%emt 0:00:46]} 11. Nxe5 {[%emt 0:05:09]} Bxb5 {[%emt 0:00:52]} 12. Qb3 {[%emt 0:00:48]} Qd5 {[%emt 0:05:32]} 13. Qxd5 {[%emt 0:03:16]} Nxd5 {[%emt 0:00:50]} 14. Rd1 {[%emt 0:00:57]} Nf6 {[%emt 0:01:16]} 15. Nc3 {[%emt 0:00:38]} Ba6 {[%emt 0:01:35]} 16. Bg5 {[%emt 0:01:38]} O-O {[%emt 0:01:08]} 17. Bxf6 {[%emt 0:00:52]} gxf6 {[%emt 0:00:24]} 18. Nd7 {[%emt 0:00:13]} Rfd8 {[%emt 0:00:27]} 19. Nd5 {[%emt 0:01:34]} Kg7 {[%emt 0:01:34]} 20. N7xf6 {[%emt 0:00:59]} Ba5 {[%emt 0:06:22]} 21. b4 {[%emt 0:02:33]} Bxb4 {[%emt 0:03:22]} 22. Nxb4 {[%emt 0:00:19]} Kxf6 {[%emt 0:02:51]} 23. Nd5+ {[%emt 0:00:19]} Kg7 {[%emt 0:14:13]} 24. Nxc7 {[%emt 0:01:04]} Be2 {[%emt 0:01:12]} 25. Re1 {[%emt 0:01:19]} Rac8 {[%emt 0:01:37]} 26. Ne6+ {[%emt 0:00:49]} fxe6 {[%emt 0:00:30]} 27. Rxe2 {[%emt 0:00:07]} Rc6 {[%emt 0:00:35]} 28. g3 {[%emt 0:00:30]} Kf6 {[%emt 0:00:28]} 29. Kg2 {[%emt 0:01:12]} b5 {[%emt 0:01:40]} 30. Rb1 {[%emt 0:01:30]} Rb8 {[%emt 0:00:40]} 31. a4 {[%emt 0:01:27]} b4 {[%emt 0:03:08]} 32. Reb2 {[%emt 0:01:18]} a5 {[%emt 0:00:48]} 33. f4 {[%emt 0:01:25]} Rc3 {[%emt 0:02:58]} 34. Ra2 {[%emt 0:03:03]} Ra3 {[%emt 0:01:49]} 35. Rbb2 {[%emt 0:01:48]} Rc3 {[%emt 0:01:59]} 36. Kh3 {[%emt 0:01:40]} Rg8 {[%emt 0:01:16]} 37. Rc2 {[%emt 0:00:49]} Rd3 {[%emt 0:01:46]} 38. Rc5 {[%emt 0:02:06]} Rd5 {[%emt 0:00:34]} 39. Rc7 {[%emt 0:01:45]} Rg7 {[%emt 0:00:45]} 40. Rxg7 {[%emt 0:02:18]} Kxg7 {[%emt 0:00:11]} 41. Kg4 {[%emt 0:30:45]} Kg6 {[%emt 0:32:34]} 42. h4 {[%emt 0:01:32]} h5+ 43. Kf3 Kf5 {[%emt 0:03:04]} 44. Ke3 {[%emt 0:01:30]} e5 {[%emt 0:00:49]} 45. fxe5 {[%emt 0:00:45]} Kxe5 {[%emt 0:00:59]} 46. Rb2 {[%emt 0:00:40]} Kf5 {[%emt 0:00:31]} 47. Rb1 {[%emt 0:01:03]} Kg4 {[%emt 0:00:11]} 48. Rb3 {[%emt 0:00:15]} Rd1 {[%emt 0:01:48]} 49. Ke4 {[%emt 0:00:46]} Rg1 {[%emt 0:01:54]} 50. Kd5 {[%emt 0:00:46]} Rxg3 {[%emt 0:00:58]} 51. Rb1 {[%emt 0:00:20]} Rc3 {[%emt 0:00:33]} 52. Kd4 {[%emt 0:00:21]} Kxh4 {[%emt 0:00:19]} 53. Rg1 {[%emt 0:00:17]} Rg3 {[%emt 0:00:16]} 54. Rh1+ {[%emt 0:00:26]} Kg4 {[%emt 0:00:15]} 55. Ke4 {[%emt 0:00:10]} h4 {[%emt 0:00:13]} 56. Rf1 {[%emt 0:00:27]} b3 {[%emt 0:00:18]} 57. Rh1 {[%emt 0:00:07]} b2 {[%emt 0:00:20]} 58. Rf1 {[%emt 0:00:08]} Rb3 {[%emt 0:00:39]} 59. Rg1+ {[%emt 0:00:19]} Kh3 {[%emt 0:00:11]} 60. Rb1 {[%emt 0:00:26]} Kg2 {[%emt 0:00:28]} 61. Kf4 {[%emt 0:00:32]} h3 {[%emt 0:00:41]} 62. Kg4 {[%emt 0:00:12]} h2 {[%emt 0:00:08]} 63. Kh4 {[%emt 0:00:19]} h1=R+ {[%emt 0:00:20]} 64. Kg4 {[%emt 0:00:06]} Rxb1 {[%emt 0:00:24]} 65. Kh4 {[%emt 0:00:07]} Rg3 {[%emt 0:00:11]} 66. Kh5 {[%emt 0:00:46]} Rh1# 0-1

[Event "DVM U12 2021-22"]
[Site "Naumburg"]
[Date "2022.03.27"]
[Round "4"]
[White "Zhang, Yibo"]
[Black "Klaska, Philipp Leon"]
[Result "0-1"]
[ECO "B43"]
[WhiteElo "1397"]
[BlackElo "1959"]
[Annotator "NA"]
[PlyCount "92"]
[EventDate "2022.03.25"]
[EventType "team-tourn"]
[EventRounds "7"]
[EventCountry "GER"]
[SourceTitle "playchess.com"]
[Source "ChessBase"]
[SourceQuality "1"]
[TimeControl "40/5400+30:1800+30"]

1. e4 {[%emt 0:00:02]} c5 {[%emt 0:00:20]} 2. Nf3 {[%emt 0:00:09]} e6 {[%emt 0:00:08]} 3. d4 {[%emt 0:00:06]} cxd4 {[%emt 0:00:03]} 4. Nxd4 {[%emt 0:00:07]} a6 {[%emt 0:00:03]} 5. Nc3 {[%emt 0:00:11]} Qc7 {[%emt 0:00:04]} 6. Bd3 {[%emt 0:00:17]} b5 {[%emt 0:00:52]} 7. O-O {[%emt 0:00:37]} Bb7 {[%emt 0:00:18]} 8. Qe2 {[%emt 0:00:43]} Nf6 {[%emt 0:03:35] is the legacy move (8...d6).} 9. a4 {[%emt 0:00:56]} b4 {[%emt 0:01:30]} 10. Nb1 {[%emt 0:00:28]} Nc6 {[%emt 0:04:40]} 11. Be3 {[%emt 0:03:54] [#]} d5 $146 {[%emt 0:15:38]} ({Predecessor:} 11... Nxd4 12. Bxd4 e5 13. Be3 Nxe4 14. Bf4 d5 15. Bxe4 dxe4 16. Bg3 Bd6 17. c3 O-O {0-1 (37) Tymchyshyn,V (1267)-Niezhentsev,K (1721) Kiev 2021}) 12. exd5 {[%emt 0:08:37]} Nxd5 {[%emt 0:04:04]} 13. c3 {[%emt 0:05:31]} Nxd4 {[%emt 0:07:00]} 14. cxd4 {[%emt 0:07:18]} Bd6 {[%emt 0:07:54]} 15. h3 {[%emt 0:02:42]} O-O {[%emt 0:04:26]} ({Better is} 15... Qc6 $17 16. Qf3 {[#]} Nf4 $1 17. Qxc6+ Bxc6 18. Bxf4 Bxf4) 16. Rc1 {[%emt 0:04:57]} Qe7 {[%emt 0:06:23]} 17. Nd2 {[%emt 0:06:37]} Nf4 {[%emt 0:03:33]} 18. Bxf4 {[%emt 0:02:14]} Bxf4 {[%emt 0:00:22]} 19. Re1 {[%emt 0:04:13]} Bxd2 {[%emt 0:10:06]} 20. Qxd2 {[%emt 0:01:17]} Rfd8 {[%emt 0:02:25]} 21. Rad1 {[%emt 0:05:42]} (21. a5 $11 {should be considered.}) 21... Bd5 {[%emt 0:02:13]} ({Black should play} 21... Rac8 $15) 22. Qe2 {[%emt 0:01:44]} a5 {[%emt 0:01:32]} 23. f3 {[%emt 0:05:40]} Kh8 {[%emt 0:03:29]} 24. Bc2 {[%emt 0:01:10]} ({White should play} 24. Rc1 $15) 24... Rac8 {[%emt 0:01:37]} 25. b3 {[%emt 0:06:07]} Qg5 {[%emt 0:03:09]} 26. Qf2 $19 {[%emt 0:01:50]} Rc3 {[%emt 0:01:16]} ({Stronger than} 26... Bxf3 27. Qxf3 Rxc2 28. Re5 $11) 27. Re5 {[%emt 0:06:54]} Qf6 {[%emt 0:01:09]} 28. Re3 {[%emt 0:05:49]} Rdc8 {[%emt 0:01:34]} 29. Rd2 {[%emt 0:01:24]} g6 {[%emt 0:01:59]} 30. Red3 {[%emt 0:05:12]} Qf4 {[%emt 0:01:27]} 31. Kh1 {[%emt 0:00:53]} Rxd3 {[%emt 0:00:26]} 32. Bxd3 {[%emt 0:03:15]} Rc1+ {[%emt 0:00:15]} 33. Bf1 {[%emt 0:00:17]} Rxf1+ {[%emt 0:00:07]} 34. Qxf1 {[%emt 0:00:06]} Qxd2 {[%emt 0:00:05]} 35. Qb5 {[%emt 0:00:22]} Qxd4 {[%emt 0:02:11]} 36. Qxa5 {[%emt 0:00:13]} Bxb3 {[%emt 0:01:13]} 37. Qb5 {[%emt 0:00:10]} Bd5 {[%emt 0:00:41]} 38. Qf1 {[%emt 0:01:33]} b3 {[%emt 0:00:26]} 39. Qc1 {[%emt 0:01:24]} b2 {[%emt 0:00:59]} 40. Qh6 {[%emt 0:00:53]} b1=Q+ {[%emt 0:00:45]} 41. Kh2 {[%emt 0:30:10]} Kg8 {[%emt 0:30:44]} 42. Qg5 {[%emt 0:00:39]} Qbg1+ {[%emt 0:00:14]} 43. Kg3 {[%emt 0:00:07]} Qdf2+ {[%emt 0:00:16]} 44. Kf4 {[%emt 0:00:23]} Qe3+ {[%emt 0:00:10]} 45. Kg4 {[%emt 0:00:09]} Qxg2+ {[%emt 0:00:06]} 46. Kh4 {[%emt 0:00:04]} Qexg5# 0-1

[Event "DVM U12 2021-22"]
[Site "Naumburg"]
[Date "2022.03.27"]
[Round "4"]
[White "Lorenz, Veronika"]
[Black "Helms, Finn"]
[Result "0-1"]
[ECO "B13"]
[WhiteElo "1388"]
[BlackElo "1911"]
[Annotator "ChessBase"]
[PlyCount "104"]
[EventDate "2022.03.25"]
[EventType "team-tourn"]
[EventRounds "7"]
[EventCountry "GER"]
[SourceTitle "playchess.com"]
[Source "ChessBase"]
[SourceQuality "1"]
[TimeControl "40/5400+30:1800+30"]

1. e4 {[%emt 0:00:08]} c6 {[%emt 0:00:04]} 2. d4 {[%emt 0:00:08]} d5 {[%emt 0:00:01]} 3. exd5 {[%emt 0:00:08]} cxd5 {[%emt 0:00:02]} 4. c4 {[%emt 0:00:11]} Nf6 {[%emt 0:00:08]} 5. Nc3 {[%emt 0:00:22]} Nc6 {[%emt 0:00:07]} 6. Nf3 {[%emt 0:00:05]} g6 {[%emt 0:00:05]} 7. cxd5 {[%emt 0:00:22]} Nxd5 {[%emt 0:00:02]} 8. Bc4 {[%emt 0:00:15]} Nb6 {[%emt 0:00:18]} 9. Bb3 {[%emt 0:00:10]} Bg7 {[%emt 0:00:16]} 10. d5 {[%emt 0:00:42]} Na5 {[%emt 0:00:18]} 11. O-O {[%emt 0:01:47]} O-O {[%emt 0:00:37]} 12. Re1 {[%emt 0:01:37]} Re8 {[%emt 0:00:51]} 13. Be3 {[%emt 0:01:50]} Bg4 {[%emt 0:01:37]} 14. h3 {[%emt 0:04:00]} Bxf3 {[%emt 0:08:05]} 15. Qxf3 {[%emt 0:00:38]} Nbc4 {[%emt 0:02:04]} 16. Ba4 {[%emt 0:11:47]} Rf8 {[%emt 0:02:33]} 17. Bc5 {[%emt 0:13:37]} Ne5 {[%emt 0:02:23]} 18. Qe2 {[%emt 0:10:30]} b6 {[%emt 0:08:05]} 19. Bb4 {[%emt 0:02:45]} g5 {[%emt 0:03:41]} 20. Rad1 {[%emt 0:06:01]} Nac4 {[%emt 0:01:43]} 21. b3 {[%emt 0:08:03]} Nd6 {[%emt 0:01:34]} 22. Ne4 {[%emt 0:05:34]} h6 {[%emt 0:06:46]} 23. Bc3 {[%emt 0:07:45]} Rc8 {[%emt 0:03:06]} 24. Bxe5 {[%emt 0:04:39]} Bxe5 {[%emt 0:00:10]} 25. Bc6 {[%emt 0:01:54]} Nxe4 {[%emt 0:02:02]} 26. Qxe4 {[%emt 0:00:02]} Bc3 {[%emt 0:00:14]} 27. Rf1 {[%emt 0:01:47]} Qd6 {[%emt 0:03:12]} 28. Rc1 {[%emt 0:02:41]} Bb4 {[%emt 0:02:21]} 29. Rc4 {[%emt 0:01:39]} a5 {[%emt 0:00:46]} 30. Rfc1 {[%emt 0:01:22]} Bc5 {[%emt 0:01:00]} 31. Re1 {[%emt 0:02:03]} Qf6 {[%emt 0:02:39]} 32. Re2 {[%emt 0:01:51]} Qa1+ {[%emt 0:00:31]} 33. Kh2 {[%emt 0:00:30]} Bd6+ {[%emt 0:00:09]} 34. g3 {[%emt 0:00:10]} f5 {[%emt 0:03:51]} 35. Qe6+ {[%emt 0:07:40]} Kg7 {[%emt 0:00:08]} 36. f4 {[%emt 0:00:22]} b5 {[%emt 0:06:38]} 37. Bxb5 {[%emt 0:02:51]} Rxc4 {[%emt 0:00:12]} 38. Bxc4 {[%emt 0:00:00]} gxf4 {[%emt 0:00:44]} 39. gxf4 {[%emt 0:00:32]} Bxf4+ {[%emt 0:00:11]} 40. Kg2 {[%emt 0:00:21]} Bd6 {[%emt 0:00:28]} 41. Qe3 {[%emt 0:07:39]} Rf6 {[%emt 0:01:44]} 42. Re1 {[%emt 0:08:11]} Qb2+ {[%emt 0:00:54]} 43. Kf1 {[%emt 0:01:33]} Bb4 {[%emt 0:03:54]} 44. Rd1 {[%emt 0:05:53]} Bd6 {[%emt 0:02:36]} 45. Qd4 {[%emt 0:01:42]} Qc2 {[%emt 0:02:25]} 46. Be2 {[%emt 0:01:30]} f4 {[%emt 0:01:57]} 47. Bf3 {[%emt 0:01:38]} Bc5 {[%emt 0:01:12]} 48. Qd2 {[%emt 0:00:09]} Qf5 {[%emt 0:00:32]} 49. Bg4 {[%emt 0:00:57]} Qe4 {[%emt 0:00:21]} 50. Qg2 {[%emt 0:00:52]} Qe3 {[%emt 0:05:44]} 51. Re1 {[%emt 0:02:24]} Qc3 {[%emt 0:04:15]} 52. Re6 {[%emt 0:02:18]} Kh8 {[%emt 0:01:58]} 0-1

[Event "DVM U12 2021-22"]
[Site "Naumburg"]
[Date "2022.03.27"]
[Round "4"]
[White "Flierl, Veronika"]
[Black "Mombauer, Felix"]
[Result "1-0"]
[ECO "C58"]
[WhiteElo "1356"]
[BlackElo "1240"]
[Annotator "NA"]
[PlyCount "155"]
[EventDate "2022.03.25"]
[EventType "team-tourn"]
[EventRounds "7"]
[EventCountry "GER"]
[SourceTitle "playchess.com"]
[Source "ChessBase"]
[SourceQuality "1"]
[TimeControl "40/5400+30:1800+30"]

1. e4 {[%emt 0:00:02]} e5 {[%emt 0:00:06]} 2. Nf3 {[%emt 0:00:07]} Nc6 {[%emt 0:00:06]} 3. Bc4 {[%emt 0:00:11]} Nf6 {[%emt 0:00:10]} 4. Ng5 {[%emt 0:00:11]} d5 {[%emt 0:00:16]} 5. exd5 {[%emt 0:00:05]} Na5 {[%emt 0:00:06]} 6. Bb5+ {[%emt 0:00:19]} Bd7 {[%emt 0:00:28]} 7. Qe2 {[%emt 0:03:34]} c6 {[%emt 0:00:57]} 8. Qxe5+ {[%emt 0:06:26]} Qe7 {[%emt 0:00:28]} 9. Qxe7+ {[%emt 0:00:10]} Bxe7 {[%emt 0:00:07]} 10. dxc6 {[%emt 0:00:09]} bxc6 {[%emt 0:00:07]} 11. Be2 {[%emt 0:00:46]} O-O {[%emt 0:00:24]} 12. O-O {[%emt 0:02:02]} Nd5 {[%emt 0:00:27]} 13. d3 {[%emt 0:00:23]} h6 {[%emt 0:00:50]} 14. Ne4 {[%emt 0:00:44]} Rab8 {[%emt 0:00:25]} 15. Nbc3 {[%emt 0:03:39]} Rfe8 {[%emt 0:00:23]} 16. Re1 {[%emt 0:01:12]} Nb4 {[%emt 0:00:38]} 17. Bd1 {[%emt 0:01:02]} Bd6 {[%emt 0:01:16]} 18. Bd2 {[%emt 0:03:30]} Bc7 {[%emt 0:00:39]} 19. a3 {[%emt 0:01:53]} Nd5 {[%emt 0:00:29]} 20. Rb1 {[%emt 0:00:33]} Be5 {[%emt 0:01:08]} 21. Nxd5 {[%emt 0:02:20]} cxd5 {[%emt 0:00:50]} 22. Nc5 {[%emt 0:00:05]} Bc6 {[%emt 0:02:02]} 23. Bxa5 {[%emt 0:00:17]} Rb5 {[%emt 0:00:13]} 24. Nb3 {[%emt 0:00:41]} Rb7 {[%emt 0:00:52]} 25. Bf3 {[%emt 0:01:55]} Rbe7 {[%emt 0:01:16]} 26. Bb4 {[%emt 0:05:16]} Re6 {[%emt 0:00:16]} 27. Nc5 {[%emt 0:00:34]} Rg6 {[%emt 0:00:22]} 28. Re2 {[%emt 0:00:44]} Bd6 {[%emt 0:00:44]} 29. Rxe8+ {[%emt 0:00:23]} Bxe8 {[%emt 0:00:07]} 30. Bxd5 {[%emt 0:00:58]} Rg5 {[%emt 0:00:13]} 31. Ne4 {[%emt 0:00:53]} Bxh2+ {[%emt 0:00:17]} 32. Kxh2 {[%emt 0:00:17]} Rxd5 {[%emt 0:00:07]} 33. Re1 {[%emt 0:00:32]} Bd7 {[%emt 0:00:34]} 34. Nc5 {[%emt 0:02:11]} Bc6 {[%emt 0:00:31]} 35. c4 {[%emt 0:00:45]} Rh5+ {[%emt 0:00:19]} 36. Kg1 {[%emt 0:00:20]} a5 {[%emt 0:00:43]} 37. Bxa5 {[%emt 0:00:43]} Rxc5 {[%emt 0:00:20]} 38. b4 {[%emt 0:00:11]} Rg5 {[%emt 0:00:31]} 39. g3 {[%emt 0:03:21]} Rh5 {[%emt 0:00:25]} 40. Kf1 {[%emt 0:00:20]} Bf3 {[%emt 0:00:10]} 41. Re8+ {[%emt 0:30:06]} Kh7 {[%emt 0:30:12]} 42. Ke1 {[%emt 0:00:03]} Rh1+ {[%emt 0:00:23]} 43. Kd2 {[%emt 0:00:06]} Rd1+ {[%emt 0:00:27]} 44. Kc2 {[%emt 0:00:24]} Rf1 {[%emt 0:00:34]} 45. Bb6 {[%emt 0:00:18]} Ra1 {[%emt 0:00:42]} 46. Kb2 {[%emt 0:00:17]} Rd1 {[%emt 0:00:26]} 47. Rd8 {[%emt 0:00:39]} g5 {[%emt 0:00:26]} 48. a4 {[%emt 0:01:24]} h5 {[%emt 0:00:31]} 49. Be3 {[%emt 0:06:54]} h4 {[%emt 0:01:06]} 50. gxh4 {[%emt 0:02:32]} gxh4 {[%emt 0:00:07]} 51. Rd4 {[%emt 0:00:18]} Rh1 {[%emt 0:00:49]} 52. Bg5 {[%emt 0:01:31]} h3 {[%emt 0:00:12]} 53. Rh4+ {[%emt 0:00:10]} Kg6 {[%emt 0:00:08]} 54. Bf4 {[%emt 0:00:13]} f5 {[%emt 0:00:40]} 55. Rh6+ {[%emt 0:01:32]} Kg7 {[%emt 0:00:24]} 56. c5 {[%emt 0:01:32]} Rf1 {[%emt 0:01:05]} 57. Rxh3 {[%emt 0:00:51]} Rxf2+ {[%emt 0:00:27]} 58. Kc3 {[%emt 0:00:46]} Ra2 {[%emt 0:00:24]} 59. Rxf3 {[%emt 0:00:38]} Rxa4 {[%emt 0:00:08]} 60. Be5+ {[%emt 0:01:03]} Kf7 {[%emt 0:00:13]} 61. Rxf5+ {[%emt 0:01:25]} Ke6 {[%emt 0:00:47]} 62. Rh5 {[%emt 0:00:10]} Kd5 {[%emt 0:00:12]} 63. Bg3+ {[%emt 0:01:19]} Kc6 {[%emt 0:00:15]} 64. Kc4 {[%emt 0:00:56]} Ra2 {[%emt 0:00:49]} 65. Rh6+ {[%emt 0:00:44]} Kd7 {[%emt 0:00:15]} 66. c6+ {[%emt 0:00:19]} Ke7 {[%emt 0:00:28]} 67. Bd6+ {[%emt 0:01:50]} Kf7 {[%emt 0:00:23]} 68. c7 {[%emt 0:01:57]} Rc2+ {[%emt 0:00:53]} 69. Kb3 {[%emt 0:00:08]} Rxc7 {[%emt 0:00:33]} 70. Bxc7 {[%emt 0:00:11]} Kg7 {[%emt 0:00:05]} 71. Rd6 {[%emt 0:00:07]} Kf7 {[%emt 0:00:07]} 72. b5 {[%emt 0:00:10]} Ke7 {[%emt 0:00:40]} 73. b6 {[%emt 0:00:06]} Kf7 {[%emt 0:00:17]} 74. b7 {[%emt 0:00:06]} Kg7 {[%emt 0:00:25]} 75. b8=Q {[%emt 0:00:10]} Kf7 {[%emt 0:00:01]} 76. Qd8 {[%emt 0:00:25]} Kg7 {[%emt 0:00:06]} 77. Qe7+ {[%emt 0:00:06]} Kg8 {[%emt 0:00:13]} 78. Rd8# 1-0

[Event "DVM U12 2021-22"]
[Site "Naumburg"]
[Date "2022.03.27"]
[Round "4"]
[White "Teng, David"]
[Black "Schimann, Kirill"]
[Result "1-0"]
[ECO "B19"]
[WhiteElo "1334"]
[BlackElo "1344"]
[Annotator "NA"]
[PlyCount "99"]
[EventDate "2022.03.25"]
[EventType "team-tourn"]
[EventRounds "7"]
[EventCountry "GER"]
[SourceTitle "playchess.com"]
[Source "ChessBase"]
[SourceQuality "1"]
[TimeControl "40/5400+30:1800+30"]

1. e4 {[%emt 0:00:01]} c6 {[%emt 0:00:04]} 2. d4 {[%emt 0:00:10]} d5 {[%emt 0:00:05]} 3. Nd2 {[%emt 0:00:20]} dxe4 {[%emt 0:00:07]} 4. Nxe4 {[%emt 0:00:19]} Bf5 {[%emt 0:00:10]} 5. Ng3 {[%emt 0:00:24]} Bg6 {[%emt 0:00:10]} 6. h4 {[%emt 0:00:41]} h6 {[%emt 0:00:09]} 7. Nf3 {[%emt 0:00:37]} Nd7 {[%emt 0:01:02]} 8. h5 {[%emt 0:00:53]} Bh7 {[%emt 0:00:38]} 9. Bd3 {[%emt 0:00:30]} Bxd3 {[%emt 0:00:12]} 10. Qxd3 {[%emt 0:00:05]} e6 {[%emt 0:00:17]} 11. Bd2 {[%emt 0:00:28]} Ngf6 {[%emt 0:00:37]} 12. O-O-O {[%emt 0:00:50]} Be7 {[%emt 0:02:00]} 13. Kb1 {[%emt 0:04:02]} Qb6 {[%emt 0:04:38]} 14. Be3 {[%emt 0:05:39]} Nd5 {[%emt 0:03:30]} 15. Ne4 {[%emt 0:03:09]} Nxe3 {[%emt 0:01:07]} 16. Qxe3 {[%emt 0:01:32]} Nf6 {[%emt 0:04:34]} 17. Nxf6+ {[%emt 0:05:22]} Bxf6 {[%emt 0:00:32]} 18. g4 {[%emt 0:03:41]} c5 {[%emt 0:04:15]} 19. c3 {[%emt 0:06:55]} cxd4 {[%emt 0:01:18]} 20. cxd4 {[%emt 0:01:49]} Rd8 {[%emt 0:04:45]} 21. Rd2 {[%emt 0:09:01]} Rd5 {[%emt 0:06:35]} 22. Rc1 {[%emt 0:09:16]} O-O {[%emt 0:03:18]} 23. Rc3 {[%emt 0:08:21]} Bg5 {[%emt 0:04:22]} 24. Nxg5 {[%emt 0:01:15]} Rxg5 {[%emt 0:01:18]} 25. Rb3 {[%emt 0:06:54]} Rb5 {[%emt 0:02:05]} 26. Rdd3 {[%emt 0:06:24]} Rxb3 {[%emt 0:01:26]} 27. Rxb3 {[%emt 0:02:10]} Qc6 {[%emt 0:02:25]} 28. f3 {[%emt 0:01:00]} Rc8 {[%emt 0:02:22]} 29. Rc3 {[%emt 0:03:09]} Qd7 {[%emt 0:01:30]} 30. Rxc8+ {[%emt 0:00:57]} Qxc8 {[%emt 0:00:13]} 31. Qc1 {[%emt 0:02:33]} Qxc1+ {[%emt 0:00:40]} 32. Kxc1 {[%emt 0:00:06]} Kf8 {[%emt 0:00:03]} 33. Kd2 {[%emt 0:00:20]} Ke7 {[%emt 0:00:12]} 34. Ke3 {[%emt 0:00:54]} Kd6 {[%emt 0:01:26]} 35. Ke4 {[%emt 0:00:35]} g6 {[%emt 0:05:31]} 36. g5 {[%emt 0:01:07]} Ke7 {[%emt 0:01:33]} 37. gxh6 {[%emt 0:00:39]} Kf8 {[%emt 0:00:06]} 38. hxg6 {[%emt 0:00:37]} fxg6 {[%emt 0:00:27]} 39. Ke5 {[%emt 0:00:34]} Kf7 {[%emt 0:00:24]} 40. h7 {[%emt 0:00:40]} Kg7 {[%emt 0:00:06]} 41. Kxe6 {[%emt 0:30:07]} Kxh7 {[%emt 0:30:04]} 42. d5 {[%emt 0:00:13]} Kh6 {[%emt 0:00:09]} 43. d6 {[%emt 0:00:05]} Kh5 {[%emt 0:00:04]} 44. d7 {[%emt 0:00:04]} Kh4 {[%emt 0:00:03]} 45. d8=Q+ {[%emt 0:00:09]} Kh3 {[%emt 0:00:05]} 46. Qg5 {[%emt 0:00:14]} Kh2 {[%emt 0:00:10]} 47. Qg4 {[%emt 0:00:15]} g5 {[%emt 0:00:08]} 48. Ke5 {[%emt 0:00:09]} b5 {[%emt 0:00:11]} 49. Ke4 {[%emt 0:00:07]} b4 {[%emt 0:00:05]} 50. Ke3 {[%emt 0:00:12]} 1-0

[Event "DVM U12 2021-22"]
[Site "Naumburg"]
[Date "2022.03.27"]
[Round "4"]
[White "Fadeev, Justin Michael"]
[Black "Haubold, Christian Lucas"]
[Result "0-1"]
[ECO "C54"]
[WhiteElo "1327"]
[BlackElo "1808"]
[Annotator "NA"]
[PlyCount "44"]
[EventDate "2022.03.25"]
[EventType "team-tourn"]
[EventRounds "7"]
[EventCountry "GER"]
[SourceTitle "playchess.com"]
[Source "ChessBase"]
[SourceQuality "1"]
[TimeControl "40/5400+30:1800+30"]

1. e4 {[%emt 0:00:01]} e5 {[%emt 0:00:07]} 2. Nf3 {[%emt 0:00:07]} Nc6 {[%emt 0:00:08]} 3. d4 {[%emt 0:00:09]} exd4 {[%emt 0:00:24]} 4. Bc4 {[%emt 0:00:15]} Bc5 {[%emt 0:00:41]} 5. c3 {[%emt 0:00:25]} Nf6 {[%emt 0:00:41]} 6. cxd4 {[%emt 0:00:26]} Bb4+ {[%emt 0:00:41]} 7. Bd2 {[%emt 0:00:25]} Nxe4 {[%emt 0:00:47]} 8. Bxb4 {[%emt 0:00:36]} Nxb4 {[%emt 0:00:18]} 9. Bxf7+ {[%emt 0:00:31]} Kxf7 {[%emt 0:00:16]} 10. Qb3+ {[%emt 0:00:14]} d5 {[%emt 0:00:38]} 11. Ne5+ {[%emt 0:00:36]} Ke6 {[%emt 0:03:07]} 12. Qxb4 {[%emt 0:01:44]} c5 {[%emt 0:07:12]} 13. Qb3 {[%emt 0:12:18]} Qa5+ {[%emt 0:10:19]} 14. Ke2 {[%emt 0:02:32]} b6 {[%emt 0:09:54]} 15. Qf3 {[%emt 0:30:54]} Ba6+ {[%emt 0:01:30]} 16. Nd3 {[%emt 0:00:56]} Rhf8 {[%emt 0:01:03]} 17. Qh3+ {[%emt 0:03:44]} Kd6 {[%emt 0:00:08]} 18. dxc5+ {[%emt 0:03:51]} bxc5 {[%emt 0:00:46]} 19. Nc3 {[%emt 0:16:18]} Rxf2+ {[%emt 0:13:17]} 20. Kd1 {[%emt 0:00:47]} Rd2+ {[%emt 0:00:33]} 21. Ke1 {[%emt 0:01:39]} Rxd3 {[%emt 0:00:47]} 22. Qg4 {[%emt 0:00:55]} Re3+ {[%emt 0:00:09]} 0-1